bitfinex/quotes_SOLUSD_20250802
["timestamp","ask_amount","ask_price","bid_price","bid_amount"]
[1754146450509,0.9,162.93,162.92,10.54400934]
[1754146450510,0.2,162.93,162.92,10.54400934]
[1754146452020,0.2,162.93,162.88,18.456428]
[1754146452021,0.9,162.93,162.88,18.456428]
[1754146452321,0.7,162.92,162.9,10.54400934]
[1754146452533,0.76729482,162.91,162.87,10.54400934]
[1754146452738,0.7,162.9,162.87,10.54400934]
[1754146453018,0.76729482,162.91,162.89,10.54400934]
[1754146453193,44.72,162.92,162.86,0.23]
[1754146453194,45.48724772,162.92,162.86,0.23]
[1754146453401,44.72,162.92,162.9,10.54400934]
[1754146453713,0.2,162.93,162.91,10.54400934]
[1754146453900,0.2,162.93,162.92,10.54400934]
[1754146454428,0.2,162.93,162.92,10.77400934]
[1754146454641,0.2,162.93,162.92,10.54400934]
[1754146455292,0.2,162.93,162.9,0.23]
[1754146455494,0.2,162.93,162.92,10.54400934]
[1754146455701,0.2,162.93,162.92,10.77400934]
[1754146456391,0.2,162.93,162.92,10.54400934]
[1754146458298,0.2,162.93,162.87,26.53780275]
[1754146458299,0.9,162.93,162.87,26.53780275]
[1754146458513,1.66720063,162.93,162.9,10.54400934]
[1754146459211,0.9,162.93,162.91,10.54400934]
[1754146459422,0.9,162.93,162.9,10.54400934]
[1754146459835,0.7,162.92,162.87,26.0]
[1754146460123,10.54400934,162.91,162.86,10.54400934]
[1754146460330,1.46734192,162.9,162.85,10.54400934]
[1754146460522,0.7,162.89,162.85,10.54400934]
[1754146460736,11.31135126,162.9,162.86,10.54400934]
[1754146460897,0.7,162.88,162.86,10.54400934]
[1754146461097,0.7,162.88,162.85,10.54400934]
[1754146461429,0.7,162.87,162.85,10.54400934]
[1754146461606,0.7,162.87,162.81,26.23]
[1754146461607,0.7,162.86,162.82,26.0]
[1754146461797,0.7,162.86,162.83,10.54400934]
[1754146462311,1.46757752,162.85,162.82,10.54400934]
[1754146462513,0.7,162.84,162.79,0.23]
[1754146462705,0.7,162.84,162.82,10.54400934]
[1754146463314,1.46753039,162.86,162.82,10.54400934]
[1754146463520,0.7,162.85,162.82,10.54400934]
[1754146464116,0.7,162.84,162.79,0.23]
[1754146464317,0.7,162.84,162.81,10.54400934]
[1754146464625,0.7,162.84,162.78,26.06]
[1754146464825,0.7,162.84,162.81,10.54400934]
[1754146465026,12.011634,162.84,162.8,10.54400934]
[1754146465202,0.7,162.83,162.8,10.54400934]
[1754146465710,0.76757752,162.85,162.82,10.54400934]
[1754146465914,1.46757752,162.85,162.82,10.54400934]
[1754146466704,0.76757752,162.85,162.82,10.54400934]
[1754146467305,0.7,162.84,162.8,10.54400934]
[1754146467602,0.76757752,162.85,162.82,10.54400934]
[1754146467802,1.46757752,162.85,162.82,10.54400934]
[1754146468025,44.6,162.86,162.83,10.54400934]
[1754146468221,45.36753039,162.86,162.83,10.54400934]
[1754146468405,46.06753039,162.86,162.8,0.23]
[1754146468605,44.6,162.86,162.84,10.54400934]
[1754146469008,44.6,162.86,162.85,10.54400934]
[1754146469216,45.3,162.86,162.81,0.23]
[1754146469413,0.7,162.85,162.83,10.54400934]
[1754146469816,0.53757752,162.85,162.84,10.77400934]
[1754146470017,18.468926,162.9,162.87,26.0]
[1754146470214,0.7,162.95,162.88,0.61394891]
[1754146470421,1.15911532,162.95,162.92,10.54400934]
[1754146470909,0.89,162.93,162.86,0.61402431]
[1754146471115,0.89,162.93,162.9,6.34215839]
[1754146471330,0.89,162.93,162.91,6.34215839]
[1754146471831,0.69,162.92,162.85,26.61406202]
[1754146472035,0.69,162.92,162.89,6.34215839]
[1754146472036,1.14911532,162.92,162.89,6.34215839]
[1754146472241,0.69,162.91,162.89,6.34215839]
[1754146472425,0.45911532,162.92,162.85,26.0]
[1754146472426,1.14911532,162.9,162.85,26.0]
[1754146472618,0.69,162.89,162.86,6.34215839]
[1754146472810,0.69,162.88,162.86,10.57825712]
[1754146474033,0.45911532,162.89,162.86,10.57825712]
[1754146474230,1.14911532,162.89,162.86,10.57825712]
[1754146475239,0.69,162.88,162.81,0.61421288]
[1754146475545,0.69,162.88,162.85,10.57825712]
[1754146476116,0.45911532,162.89,162.85,10.57825712]
[1754146476317,0.69,162.87,162.84,10.57825712]
[1754146477226,1.14911532,162.89,162.85,10.57825712]
[1754146477542,16.78468397,162.92,162.88,10.57825712]
[1754146477543,0.45911532,162.91,162.88,10.57825712]
[1754146477726,0.2,162.93,162.9,10.57825712]
[1754146477922,0.2,162.93,162.92,10.57825712]
[1754146478441,0.2,162.93,162.91,10.57825712]
[1754146479441,0.2,162.93,162.92,10.57825712]
[1754146479744,0.2,162.93,162.87,26.0]
[1754146479918,0.2,162.93,162.92,10.57825712]
[1754146480826,0.89,162.93,162.88,0.61394891]
[1754146481146,0.2,162.93,162.92,10.57825712]
[1754146481842,0.89,162.93,162.92,10.57825712]
[1754146482154,0.2,162.93,162.92,10.57825712]
[1754146484929,0.89,162.93,162.88,0.61394891]
[1754146485242,0.69,162.92,162.91,10.57825712]
[1754146485450,0.69,162.92,162.9,10.57825712]
[1754146485648,0.2,162.93,162.9,10.57825712]
[1754146485844,0.69,162.91,162.85,0.61406202]
[1754146486051,1.34911532,162.93,162.9,10.57825712]
[1754146486351,1.34911532,162.93,162.91,10.57825712]
[1754146486523,0.69,162.92,162.9,10.57825712]
[1754146486849,1.14911532,162.91,162.89,10.57825712]
[1754146487025,0.69,162.9,162.84,0.61409972]
[1754146487222,0.69,162.9,162.89,10.57825712]
[1754146487445,1.14911532,162.92,162.89,10.57825712]
[1754146487630,1.14911532,162.92,162.9,10.57825712]
[1754146487831,0.65911532,162.93,162.84,0.61409972]
[1754146488027,0.2,162.93,162.92,10.57825712]
[1754146489935,0.2,162.93,162.88,26.0]
[1754146490141,0.89,162.93,162.92,10.57825712]
[1754146490426,0.2,162.93,162.92,10.57825712]
[1754146493159,0.2,162.93,162.92,13.68623559]
[1754146493530,0.03,162.95,162.92,30.47091956]
[1754146493863,0.03,162.98,162.94,10.57825712]
[1754146494022,0.03,162.98,162.97,10.57825712]
[1754146494228,1.17911532,162.98,162.94,10.57825712]
[1754146494422,0.69,162.97,162.95,10.57825712]
[1754146494847,0.03,162.98,162.96,10.57825712]
[1754146495051,0.03,162.98,162.97,10.57825712]
[1754146496129,0.03,162.98,162.91,26.78468397]
[1754146496130,0.03,162.98,162.92,0.61379818]
[1754146496332,0.03,162.98,162.97,10.57825712]
[1754146497942,0.03,162.98,162.94,26.61372284]
[1754146498163,0.72,162.98,162.97,10.57825712]
[1754146499038,0.72,162.98,162.95,10.57825712]
[1754146499440,0.69,162.97,162.95,10.57825712]
[1754146500058,0.69,162.96,162.91,0.61383586]
[1754146500262,0.69,162.95,162.93,10.57825712]
[1754146500457,0.69,162.94,162.89,0.61391122]
[1754146500629,0.69,162.95,162.93,10.57825712]
[1754146501277,0.66,162.94,162.92,10.57825712]
[1754146501439,0.66,162.93,162.87,45.25398661]
[1754146501642,0.66,162.95,162.92,10.57825712]
[1754146501841,0.66,162.94,162.92,10.57825712]
[1754146502365,0.66,162.96,162.93,10.57825712]
[1754146502545,0.66,162.96,162.87,71.25398661]
[1754146502546,0.03,162.98,162.95,10.57825712]
[1754146502744,0.03,162.98,162.97,10.57825712]
[1754146504956,0.69,162.98,162.94,0.61372284]
[1754146505145,11.03737244,162.97,162.92,10.57825712]
[1754146505468,0.66,162.96,162.92,10.57825712]
[1754146505660,0.66,162.95,162.92,10.57825712]
[1754146505863,0.66,162.95,162.93,10.57825712]
[1754146506257,0.66,162.95,162.88,71.19394891]
[1754146506440,0.66,162.95,162.93,10.57825712]
[1754146508057,0.45911532,162.97,162.94,10.57825712]
[1754146508240,0.66,162.96,162.93,10.57825712]
[1754146508562,0.66,162.95,162.92,10.57825712]
[1754146508750,0.66,162.95,162.93,10.57825712]
[1754146510758,0.66,162.94,162.89,0.61391122]
[1754146511059,0.66,162.93,162.9,10.57825712]
[1754146511485,0.66,162.92,162.89,10.57825712]
[1754146511689,0.66,162.92,162.9,10.57825712]
[1754146512309,0.45911532,162.94,162.9,10.57825712]
[1754146512310,1.11911532,162.94,162.9,10.57825712]
[1754146512504,0.66,162.92,162.9,10.57825712]
[1754146512867,11.23825712,162.94,162.9,10.57825712]
[1754146513116,0.66,162.93,162.9,10.57825712]
[1754146513793,11.23825712,162.96,162.91,10.57825712]
[1754146513991,1.11911532,162.95,162.91,10.57825712]
[1754146514181,0.66,162.94,162.91,10.57825712]
[1754146515195,11.23825712,162.96,162.91,10.57825712]
[1754146515435,1.11911532,162.95,162.91,10.57825712]
[1754146515910,0.66,162.94,162.91,10.57825712]
[1754146516788,0.66,162.94,162.9,10.57825712]
[1754146516981,0.66,162.93,162.9,10.57825712]
[1754146517770,11.23825712,162.95,162.9,10.57825712]
[1754146517980,1.11911532,162.94,162.9,10.57825712]
[1754146518186,0.66,162.94,162.9,10.57825712]
[1754146518590,10.57825712,162.95,162.91,10.57825712]
[1754146518791,11.23825712,162.95,162.91,10.57825712]
[1754146518975,0.66,162.94,162.87,90.21398661]
[1754146519202,0.66,162.94,162.9,10.57825712]
[1754146520102,1.11911532,162.94,162.9,10.57825712]
[1754146520426,10.57825712,162.91,162.86,89.6]
[1754146520627,0.66,162.9,162.86,100.17825712]
[1754146520918,0.66,162.92,162.85,89.66]
[1754146521088,11.69737244,162.92,162.87,10.57825712]
[1754146521422,26.0,162.93,162.89,10.57825712]
[1754146521600,0.66,162.94,162.9,10.57825712]
[1754146521926,11.23825712,162.96,162.91,10.57825712]
[1754146522090,1.11911532,162.95,162.91,10.57825712]
[1754146522287,0.66,162.94,162.9,10.57825712]
[1754146522516,0.66,162.94,162.88,0.06]
[1754146522820,0.66,162.94,162.9,10.57825712]
[1754146523027,0.66,162.93,162.9,10.57825712]
[1754146523717,10.57825712,162.93,162.88,0.06]
[1754146524032,0.66,162.92,162.88,10.63825712]
[1754146525201,0.66,162.92,162.89,10.57825712]
[1754146525409,11.69737244,162.94,162.89,10.57825712]
[1754146525605,11.23825712,162.93,162.89,10.57825712]
[1754146525914,11.23825712,162.92,162.88,0.06]
[1754146526092,10.57825712,162.9,162.88,0.06]
[1754146526299,11.03737244,162.9,162.88,0.06]
[1754146526494,0.66,162.89,162.88,0.06]
[1754146527306,11.69737244,162.89,162.88,0.06]
[1754146528517,16.18981735,162.89,162.88,0.06]
[1754146529026,11.69737244,162.89,162.88,0.06]
[1754146530817,33.46882095,162.89,162.88,0.06]
[1754146533033,13.21852695,162.91,162.88,0.06]
[1754146533532,7.05970563,162.9,162.88,0.06]
[1754146533740,6.80882095,162.89,162.88,0.06]
[1754146534100,7.51882095,162.89,162.88,0.06]
[1754146535530,33.51882095,162.89,162.88,0.06]
[1754146537328,30.65321055,162.89,162.88,0.06]
[1754146537625,35.13609537,162.89,162.88,0.06]
[1754146538204,30.65321055,162.89,162.88,0.06]
[1754146538398,28.78552359,162.89,162.88,0.06]
[1754146538630,52.01882095,162.89,162.88,0.06]
[1754146543735,45.66911532,162.89,162.88,0.06]
[1754146544040,52.01882095,162.89,162.88,0.06]
[1754146545130,75.15321055,162.89,162.88,0.06]
[1754146545335,73.28555968,162.89,162.88,0.06]
[1754146545821,79.63526531,162.89,162.88,0.06]
[1754146546827,22.43585405,162.89,162.88,0.06]
[1754146547038,52.01882095,162.89,162.88,0.06]
[1754146547249,56.49934125,162.89,162.88,0.06]
[1754146548430,48.9805203,162.89,162.88,0.06]
[1754146548649,44.5,162.89,162.88,0.06]
[1754146549951,51.30882095,162.89,162.88,0.06]
[1754146550348,52.01882095,162.89,162.88,0.06]
[1754146550551,45.66911532,162.89,162.88,0.06]
[1754146550736,51.55970563,162.89,162.88,0.06]
[1754146551353,52.01882095,162.89,162.88,0.06]
[1754146551646,44.95911532,162.89,162.88,0.06]
[1754146551834,51.30882095,162.89,162.88,0.06]
[1754146552448,48.98832697,162.89,162.88,0.06]
[1754146552635,44.5,162.89,162.88,0.06]
[1754146552834,0.45911532,162.93,162.88,6.40970563]
[1754146553053,44.95911532,162.93,162.9,6.34970563]
[1754146553242,44.5,162.93,162.91,6.34970563]
[1754146554324,44.5,162.93,162.88,0.67394891]
[1754146554325,44.5,162.93,162.9,6.34970563]
[1754146554636,44.5,162.93,162.89,6.34970563]
[1754146555036,44.5,162.93,162.9,6.34970563]
[1754146555237,44.5,162.93,162.91,6.34970563]
[1754146555647,44.5,162.93,162.88,0.06]
[1754146555648,44.5,162.93,162.9,6.34970563]
[1754146555851,51.55970563,162.93,162.88,0.06]
[1754146556149,1.16911532,162.92,162.88,6.40970563]
[1754146556351,0.71,162.92,162.88,6.40970563]
[1754146557235,1.16911532,162.92,162.88,6.40970563]
[1754146557941,0.71,162.92,162.88,6.40970563]
[1754146558863,51.99882095,162.91,162.88,0.06]
[1754146559023,7.05970563,162.9,162.88,0.06]
[1754146559660,0.71,162.89,162.88,0.06]
[1754146559962,7.05970563,162.9,162.88,0.06]
[1754146560153,0.71,162.9,162.88,0.06]
[1754146560347,0.71,162.89,162.88,0.06]
[1754146560956,51.95882095,162.91,162.88,0.06]
[1754146561256,6.34970563,162.9,162.88,0.06]
[1754146561553,7.01970563,162.9,162.88,0.06]
[1754146561879,0.45911532,162.91,162.88,6.40970563]
[1754146562033,44.93911532,162.93,162.9,6.34970563]
[1754146562732,51.28882095,162.93,162.88,0.06]
[1754146562985,51.28882095,162.93,162.89,6.34970563]
[1754146562986,51.95882095,162.93,162.89,6.34970563]
[1754146563267,51.95882095,162.93,162.88,6.40970563]
[1754146563268,5.16998439,162.92,162.88,6.40970563]
[1754146563482,44.93911532,162.93,162.89,6.34970563]
[1754146563768,51.95882095,162.93,162.89,6.34970563]
[1754146563967,45.60911532,162.93,162.89,6.34970563]
[1754146564386,44.93911532,162.93,162.89,6.34970563]
[1754146564591,44.93911532,162.93,162.88,0.06]
[1754146564776,0.67,162.92,162.89,6.34970563]
[1754146565352,44.93911532,162.93,162.89,6.34970563]
[1754146565654,45.60911532,162.93,162.89,6.34970563]
[1754146566799,44.46,162.95,162.92,6.34970563]
[1754146566965,44.46,162.95,162.93,6.34970563]
[1754146567502,45.16,162.97,162.93,6.34970563]
[1754146567683,45.61911532,162.97,162.93,6.34970563]
[1754146568021,45.61911532,162.97,162.9,0.61387354]
[1754146568193,45.61911532,162.97,162.93,6.34970563]
[1754146568494,0.67,162.96,162.93,6.34970563]
[1754146568689,0.67,162.95,162.92,6.34970563]
[1754146569583,51.50970563,162.97,162.92,6.34970563]
[1754146569880,0.67,162.95,162.92,6.34970563]
[1754146570082,45.61911532,162.97,162.93,6.34970563]
[1754146570375,0.67,162.96,162.93,6.34970563]
[1754146571159,0.67,162.95,162.92,6.34970563]
[1754146572400,0.67,162.95,162.93,6.34970563]
[1754146574283,45.16,162.97,162.93,6.34970563]
[1754146574472,0.67,162.96,162.93,6.34970563]
[1754146574790,0.67,162.95,162.89,90.21391122]
[1754146574994,44.94911532,162.97,162.94,6.34970563]
[1754146575198,0.67,162.96,162.94,6.34970563]
[1754146575689,0.67,162.95,162.89,90.21391122]
[1754146575867,0.67,162.95,162.92,6.34970563]
[1754146576064,0.67,162.95,162.89,90.21391122]
[1754146576298,0.67,162.95,162.93,6.34970563]
[1754146576478,0.67,162.95,162.88,32.40970563]
[1754146576479,7.47882095,162.95,162.88,115.66]
[1754146576681,0.67,162.94,162.88,26.06]
[1754146576883,51.91882095,162.94,162.89,6.34970563]
[1754146577074,0.67,162.93,162.9,6.34970563]
[1754146577478,0.67,162.92,162.9,6.34970563]
[1754146577700,0.67,162.92,162.89,6.34970563]
[1754146578198,44.89911532,162.94,162.89,6.34970563]
[1754146578497,0.67,162.91,162.88,6.40970563]
[1754146578690,0.67,162.9,162.88,6.40970563]
[1754146579210,0.67,162.89,162.88,0.06]
[1754146580598,1.12911532,162.89,162.88,0.06]
[1754146580802,0.67,162.89,162.88,0.06]
[1754146582801,1.12911532,162.89,162.88,0.06]
[1754146583602,0.67,162.89,162.88,0.06]
[1754146583903,1.12911532,162.89,162.88,0.06]
[1754146584110,7.47882095,162.89,162.88,0.06]
[1754146585393,11.97911431,162.89,162.88,0.06]
[1754146586090,5.62940868,162.89,162.88,0.06]
[1754146586405,11.97911431,162.89,162.88,0.06]
[1754146586707,48.94029336,162.89,162.88,0.06]
[1754146586914,44.44,162.89,162.88,0.06]
[1754146587406,44.44,162.9,162.88,0.06]
[1754146588512,0.67,162.89,162.88,0.06]
[1754146588822,7.01970563,162.89,162.88,0.06]
[1754146589691,11.52170511,162.89,162.88,0.06]
[1754146590587,34.65609471,162.89,162.88,0.06]
[1754146590813,28.30638908,162.89,162.88,0.06]
[1754146592190,54.30638908,162.89,162.88,0.06]
[1754146592619,37.52170511,162.89,162.88,0.06]
[1754146593990,31.17199948,162.89,162.88,0.06]
[1754146594223,37.52170511,162.89,162.88,0.06]
[1754146597408,54.30638908,162.89,162.88,0.06]
[1754146599091,47.99668345,162.89,162.88,0.06]
[1754146599422,81.29170511,162.89,162.88,0.06]
[1754146599719,82.00170511,162.89,162.88,0.06]
[1754146600296,98.78638908,162.89,162.88,0.06]
[1754146600599,72.78638908,162.89,162.88,0.06]
[1754146600803,72.78638908,162.89,162.86,0.06]
[1754146600804,26.0,162.87,162.86,0.06]
[1754146601121,81.75082043,162.87,162.86,0.06]
[1754146601305,99.2455044,162.87,162.86,0.06]
[1754146606319,99.2455044,162.87,162.83,0.06]
[1754146606320,26.0,162.84,162.83,0.06]
[1754146606512,77.22882095,162.84,162.83,0.06]
[1754146606732,94.72350492,162.84,162.83,0.06]
[1754146606909,99.21881834,162.84,162.83,0.06]
[1754146607237,94.72350492,162.84,162.83,0.06]
[1754146607619,26.0,162.8,162.78,0.06]
[1754146607838,44.89911532,162.79,162.78,0.06]
[1754146608048,51.24882095,162.79,162.78,0.06]
[1754146608337,51.95882095,162.79,162.78,0.06]
[1754146610047,51.24882095,162.79,162.78,0.06]
[1754146611246,0.45911532,162.79,162.78,0.06]
[1754146611452,0.45911532,162.82,162.78,6.46970563]
[1754146611752,44.44,162.82,162.81,0.06]
[1754146612052,51.49970563,162.82,162.81,0.06]
[1754146613740,45.15,162.82,162.81,0.06]
[1754146613943,44.42,162.82,162.81,0.06]
[1754146614364,44.87911532,162.82,162.81,0.06]
[1754146615079,44.42,162.82,162.81,0.06]
[1754146617373,6.80882095,162.86,162.81,6.46970563]
[1754146617537,44.42,162.85,162.82,6.40970563]
[1754146617740,4.486568,162.84,162.82,0.06]
[1754146617937,44.42,162.85,162.82,6.40970563]
[1754146618645,4.48722708,162.84,162.82,6.40970563]
[1754146618862,44.42,162.85,162.81,0.06]
[1754146619067,44.42,162.85,162.82,6.34970563]
[1754146620859,44.42,162.85,162.81,6.40970563]
[1754146621046,45.53911532,162.85,162.81,6.40970563]
[1754146621246,0.66,162.84,162.81,6.40970563]
[1754146621448,44.42,162.83,162.81,6.40970563]
[1754146621760,44.42,162.83,162.81,0.12]
[1754146621970,0.45911532,162.82,162.81,0.06]
[1754146622132,7.46882095,162.82,162.81,0.06]
[1754146624587,11.96452173,162.82,162.81,0.06]
[1754146624881,5.6148161,162.82,162.81,0.06]
[1754146625071,11.96452173,162.82,162.81,0.06]
[1754146627446,7.46882095,162.82,162.81,0.06]
[1754146627666,11.96691256,162.82,162.81,0.06]
[1754146628861,54.75159653,162.82,162.81,0.06]
[1754146630381,54.75216074,162.82,162.81,0.06]
[1754146631955,35.26186574,162.82,162.81,0.06]
[1754146632156,45.65564032,162.82,162.81,0.06]
[1754146632449,45.65564032,162.82,162.78,0.06]
[1754146632450,42.78468397,162.79,162.78,0.06]
[1754146632667,98.03304542,162.79,162.78,0.06]
[1754146632870,99.15216074,162.79,162.78,0.06]
[1754146633363,101.61635274,162.79,162.78,0.06]
[1754146635067,247.71635274,162.79,162.78,0.06]
[1754146635261,256.29957638,162.79,162.78,0.06]
[1754146635659,253.83538438,162.79,162.78,0.06]
[1754146637785,253.83538438,162.79,162.73,0.1]
[1754146637786,23.1343896,162.74,162.73,0.1]
[1754146637960,72.49216074,162.74,162.73,0.1]
[1754146638160,73.15216074,162.74,162.73,0.1]
[1754146638359,68.65350492,162.74,162.73,0.1]
[1754146639286,73.14130704,162.74,162.73,0.1]
[1754146639490,68.65350492,162.74,162.73,0.1]
[1754146639870,73.13958317,162.74,162.73,0.1]
[1754146640861,42.78468397,162.72,162.71,0.1]
[1754146641080,0.45911532,162.72,162.71,0.1]
[1754146641291,44.4,162.72,162.71,0.26]
[1754146641464,6.80882095,162.72,162.71,0.1]
[1754146641787,51.20882095,162.72,162.71,0.1]
[1754146642299,0.45911532,162.72,162.71,0.1]
[1754146642474,44.85911532,162.72,162.71,0.1]
[1754146642864,51.20882095,162.72,162.71,0.1]
[1754146643388,51.86882095,162.72,162.71,0.1]
[1754146643892,44.85911532,162.72,162.71,0.1]
[1754146644281,8.5453454,162.75,162.71,6.60970563]
[1754146644472,44.4,162.74,162.72,6.34970563]
[1754146644677,44.4,162.74,162.73,0.16]
[1754146645175,44.4,162.74,162.71,6.60970563]
[1754146646266,44.4,162.74,162.72,0.16]
[1754146646487,44.4,162.74,162.72,6.50970563]
[1754146646759,44.4,162.74,162.73,0.16]
[1754146646987,8.08623008,162.75,162.73,6.50970563]
[1754146647312,8.08623008,162.75,162.74,6.50970563]
[1754146648308,3.23584636,162.85,162.74,6.50970563]
[1754146648470,44.85911532,162.84,162.82,6.34970563]
[1754146648787,44.85911532,162.84,162.83,6.34970563]
[1754146648788,44.4,162.84,162.83,6.34970563]
[1754146650392,44.4,162.84,162.82,6.34970563]
[1754146652682,44.4,162.84,162.82,0.16]
[1754146652890,44.4,162.84,162.83,6.34970563]
[1754146653286,44.85911532,162.84,162.79,0.16]
[1754146653496,44.85911532,162.84,162.82,6.34970563]
[1754146653668,0.71,162.83,162.75,26.0]
[1754146653869,51.18882095,162.82,162.75,26.16]
[1754146654178,45.54911532,162.82,162.79,6.34970563]
[1754146654485,0.71,162.81,162.79,6.34970563]
[1754146654692,44.38,162.8,162.79,6.34970563]
[1754146654868,44.38,162.8,162.78,0.06]
[1754146655072,44.38,162.8,162.79,6.34970563]
[1754146655476,44.38,162.8,162.79,6.50970563]
[1754146656197,44.38,162.8,162.79,6.34970563]
[1754146656495,45.09,162.82,162.79,6.34970563]
[1754146656699,0.48911532,162.84,162.81,6.34970563]
[1754146656877,44.38,162.83,162.82,6.34970563]
[1754146657681,0.03,162.84,162.82,6.34970563]
[1754146657972,0.03,162.84,162.83,6.50970563]
[1754146663511,0.03,162.85,162.83,23.90852704]
[1754146663697,0.03,162.85,162.84,6.34970563]
[1754146663902,0.03,162.85,162.84,6.50970563]
[1754146664102,0.03,162.85,162.84,23.2943896]
[1754146664615,0.03,162.89,162.85,42.78468397]
[1754146664909,0.03,162.89,162.88,12.69941126]
[1754146665317,0.03,162.89,162.88,12.85941126]
[1754146666405,0.03,162.89,162.88,12.69941126]
[1754146667112,0.03,162.89,162.88,12.85941126]
[1754146667903,0.03,162.89,162.88,29.64409523]
[1754146669017,44.34,162.96,162.88,55.64409523]
[1754146669314,0.71,162.96,162.95,6.34970563]
[1754146671906,0.71,162.96,162.94,6.34970563]
[1754146672108,0.71,162.95,162.94,6.34970563]
[1754146672605,0.71,162.95,162.89,0.77391122]
[1754146672808,0.71,162.95,162.93,6.34970563]
[1754146673010,7.05970563,162.95,162.91,6.34970563]
[1754146673195,0.71,162.94,162.91,6.34970563]
[1754146673596,0.71,162.94,162.88,32.34970563]
[1754146673798,0.45911532,162.93,162.9,6.34970563]
[1754146673997,0.71,162.92,162.91,6.34970563]
[1754146674210,0.71,162.92,162.88,6.34970563]
[1754146674516,0.71,162.92,162.9,6.34970563]
[1754146674816,0.71,162.92,162.91,6.34970563]
[1754146675117,0.71,162.92,162.9,6.34970563]
[1754146675314,0.71,162.92,162.85,26.16]
[1754146675315,0.71,162.92,162.89,6.34970563]
[1754146675500,44.3,162.95,162.9,6.34970563]
[1754146675501,0.71,162.91,162.9,6.34970563]
[1754146676123,0.71,162.93,162.9,6.34970563]
[1754146676311,0.21,162.93,162.91,6.34970563]
[1754146676498,50.64970563,162.95,162.92,6.34970563]
[1754146676499,44.3,162.95,162.92,6.34970563]
[1754146676699,44.3,162.95,162.93,6.34970563]
[1754146676999,44.3,162.95,162.88,6.34970563]
[1754146677000,44.3,162.95,162.94,6.34970563]
[1754146677418,0.03,162.97,162.94,6.34970563]
[1754146677605,0.03,162.97,162.96,6.34970563]
[1754146678819,0.74,162.97,162.95,6.34970563]
[1754146679018,1.19911532,162.97,162.93,6.34970563]
[1754146679192,0.71,162.96,162.94,6.34970563]
[1754146679391,0.48911532,162.97,162.93,6.34970563]
[1754146679392,0.71,162.95,162.93,6.34970563]
[1754146680003,0.71,162.95,162.89,26.0]
[1754146680194,0.71,162.95,162.92,6.34970563]
[1754146680652,0.71,162.94,162.92,6.34970563]
[1754146680807,0.68,162.96,162.93,6.34970563]
[1754146681406,0.03,162.97,162.95,6.34970563]
[1754146683209,0.03,162.97,162.96,6.34970563]
[1754146684595,0.03,162.97,162.96,7.00970563]
[1754146685596,0.03,162.97,162.96,13.35941126]
[1754146686796,0.03,162.97,162.93,0.61376051]
[1754146686797,0.03,162.97,162.93,1.27376051]
[1754146686998,0.03,162.97,162.96,6.34970563]
[1754146687232,0.71,162.97,162.96,6.34970563]
[1754146687433,0.71,162.97,162.95,6.34970563]
[1754146687802,0.71,162.97,162.96,6.34970563]
[1754146687996,0.03,162.97,162.96,6.34970563]
[1754146688611,0.03,162.97,162.96,7.00970563]
[1754146688813,0.03,162.97,162.96,13.35941126]
[1754146689233,0.03,162.97,162.96,13.97305878]
[1754146690123,0.03,162.97,162.96,7.62335315]
[1754146690541,0.03,162.97,162.96,6.34970563]
[1754146690898,0.03,162.97,162.96,10.56332078]
[1754146691521,0.03,162.97,162.96,11.22332078]
[1754146691722,0.03,162.97,162.96,11.8369683]
[1754146693619,0.03,162.97,162.96,10.56332078]
[1754146696542,0.03,162.97,162.96,11.22332078]